fUST/lending_fUST_20250709
["ID","MTS","AMOUNT","RATE_DAILY","PERIOD"]
[370537664,1752061841301,-500.0,0.00020128,2]
[370537666,1752061841310,-500.0,0.00020128,2]
[370537668,1752061841319,-500.0,0.00020128,2]
[370537670,1752061841330,-500.0,0.00020128,2]
[370537672,1752061841339,-500.0,0.00020128,2]
[370537674,1752061841349,-500.0,0.00020128,2]
[370537676,1752061841358,-500.0,0.00020128,2]
[370537678,1752061841368,-500.0,0.00020128,2]
[370537680,1752061841377,-500.0,0.00020128,2]
[370537682,1752061841386,-197.477103,0.00020187,2]
[370537684,1752061841395,-712.06,0.00020272,2]
[370537686,1752061841405,-712.06,0.00020272,2]
[370537688,1752061841414,-460.0,0.00020273,2]
[370537690,1752061841423,-151.0,0.00020273,2]
[370537692,1752061841432,-460.0,0.00020273,2]
[370537694,1752061841441,-460.0,0.00020273,2]
[370537696,1752061841450,-460.0,0.00020273,2]
[370537698,1752061841459,-460.0,0.00020273,2]
[370537700,1752061841469,-460.0,0.00020273,2]
[370537702,1752061841478,-460.0,0.00020273,2]
[370537704,1752061841487,-460.0,0.00020273,2]
[370537706,1752061841496,-3254.5,0.00020273,2]
[370537708,1752061841505,-460.0,0.00020273,2]
[370537710,1752061841514,-1204.18,0.00020273,2]
[370537712,1752061841523,-467.7,0.00020273,2]
[370537714,1752061841533,-4438.34,0.00020273,2]
[370537716,1752061841542,-460.0,0.00020273,2]
[370537718,1752061841552,-2809.86,0.00020273,2]
[370537720,1752061841562,-1437.82,0.00020273,2]
[370537722,1752061841571,-460.0,0.00020273,2]
[370537724,1752061841580,-460.0,0.00020273,2]
[370537726,1752061841589,-460.0,0.00020273,2]
[370537728,1752061841599,-460.0,0.00020273,2]
[370537730,1752061841608,-460.0,0.00020273,2]
[370537732,1752061841617,-460.0,0.00020273,2]
[370537734,1752061841627,-496.07,0.00020273,2]
[370537736,1752061841636,-460.0,0.00020273,2]
[370537738,1752061841645,-460.0,0.00020273,2]
[370537739,1752061841654,-460.0,0.00020273,2]
[370537741,1752061841663,-583.15,0.00020273,2]
[370537743,1752061841672,-1095.64,0.00020273,2]
[370537745,1752061841682,-1601.6,0.00020273,2]
[370537747,1752061841691,-460.0,0.00020273,2]
[370537749,1752061841700,-1785.9,0.00020273,2]
[370537751,1752061841709,-460.0,0.00020273,2]
[370537753,1752061841719,-460.0,0.00020273,2]
[370537755,1752061841728,-460.0,0.00020273,2]
[370537757,1752061841737,-1530.41,0.00020273,2]
[370537759,1752061841746,-752.29,0.00020273,2]
[370537761,1752061841755,-909.53,0.00020273,2]
[370537763,1752061841764,-460.0,0.00020273,2]
[370537765,1752061841774,-1971.58,0.00020273,2]
[370537767,1752061841787,-460.0,0.00020273,2]
[370537769,1752061841796,-460.0,0.00020273,2]
[370537771,1752061841805,-460.0,0.00020273,2]
[370537773,1752061841814,-460.0,0.00020273,2]
[370537775,1752061841826,-460.0,0.00020273,2]
[370537777,1752061841835,-460.0,0.00020273,2]
[370537779,1752061841844,-619.08,0.00020273,2]
[370537781,1752061841855,-1051.23,0.00020273,2]
[370537783,1752061841864,-571.01,0.00020273,2]
[370537785,1752061841874,-460.0,0.00020273,2]
[370537787,1752061841884,-460.0,0.00020273,2]
[370537789,1752061841893,-1056.3,0.00020273,2]
[370537791,1752061841903,-460.0,0.00020273,2]
[370537793,1752061841912,-616.85,0.00020273,2]
[370537796,1752061841922,-460.0,0.00020273,2]
[370537798,1752061841932,-460.0,0.00020273,2]
[370537799,1752061841942,-460.0,0.00020273,2]
[370537801,1752061841952,-648.54,0.00020273,2]
[370537803,1752061841962,-460.0,0.00020273,2]
[370537805,1752061841972,-460.0,0.00020273,2]
[370537807,1752061841983,-460.0,0.00020273,2]
[370537809,1752061841992,-1381.42,0.00020273,2]
[370537812,1752061842002,-318.0,0.00020298,2]
[370537814,1752061842012,-13615.09333422,0.0002035,2]
[370537815,1752061842021,-500.0,0.00020354,2]
[370537817,1752061842031,-500.0,0.00020354,2]
[370537819,1752061842040,-500.0,0.00020358,2]
[370537821,1752061842049,-198.54547979,0.00020358,2]
[370537823,1752061842058,-160.0,0.00020368,2]
[370537825,1752061842067,-214.14293035,0.00020368,2]
[370537827,1752061842076,-160.0,0.00020368,2]
[370537829,1752061842085,-160.0,0.00020368,2]
[370537831,1752061842094,-12589.12013084,0.00020368,2]
[370537833,1752061842103,-848.55005627,0.00020368,2]
[370537835,1752061842113,-230.53906051,0.00020368,2]
[370537837,1752061842122,-837.99933892,0.00020368,2]
[370537839,1752061842131,-215.27775528,0.00020368,2]
[370537841,1752061842140,-160.0,0.00020369,2]
[370537843,1752061842150,-365.887355,0.0002037,2]
[370537845,1752061842159,-160.0,0.0002037,2]
[370537847,1752061842168,-160.0,0.0002037,2]
[370537849,1752061842177,-927.63946218,0.00020398,2]
[370537851,1752061842186,-1000.0,0.00020398,2]
[370537853,1752061842196,-536.94146932,0.00020398,2]
[370537855,1752061842205,-266.86354649,0.0002045,2]
[370537857,1752061842216,-750.48457037,0.0002045,2]
[370537859,1752061842225,-750.48457037,0.0002045,2]
[370537861,1752061842234,-750.48457037,0.0002045,2]
[370537863,1752061842243,-750.48457037,0.0002045,2]
[370537865,1752061842252,-750.48457037,0.0002045,2]
[370537867,1752061842261,-750.48457037,0.0002045,2]
[370537869,1752061842270,-750.48457037,0.0002045,2]
[370537871,1752061842279,-750.48457037,0.0002045,2]
[370537873,1752061842288,-750.48457037,0.0002045,2]
[370537875,1752061842298,-750.48457037,0.0002045,2]
[370537877,1752061842307,-750.48457037,0.0002045,2]
[370537879,1752061842316,-750.48457037,0.0002045,2]
[370537881,1752061842325,-750.48457037,0.0002045,2]
[370537883,1752061842334,-750.48457037,0.0002045,2]
[370537885,1752061842343,-750.48457037,0.0002045,2]
[370537887,1752061842352,-750.48457037,0.0002045,2]
[370537889,1752061842361,-750.48457037,0.0002045,2]
[370537891,1752061842370,-2541.68129933,0.0002045,2]
[370537892,1752061842379,-2541.68129933,0.0002045,2]
[370537894,1752061842389,-2541.68129933,0.0002045,2]
[370537896,1752061842399,-2541.68129933,0.0002045,2]
[370537898,1752061842408,-2541.68129933,0.0002045,2]
[370537900,1752061842418,-2541.68129933,0.0002045,2]
[370537902,1752061842427,-2541.68129933,0.0002045,2]
[370537904,1752061842436,-2541.68129933,0.0002045,2]
[370537906,1752061842446,-207.4,0.00020451,2]
[370537908,1752061842455,-300.0,0.00020451,2]
[370537910,1752061842466,-300.0,0.00020451,2]
[370537912,1752061842475,-690.642,0.00020451,2]
[370537914,1752061842484,-300.0,0.00020451,2]
[370537916,1752061842494,-300.0,0.00020451,2]
[370537918,1752061842504,-300.0,0.00020451,2]
[370537920,1752061842513,-500.0,0.00020451,2]
[370537923,1752061842523,-3000.0,0.00020451,2]
[370537924,1752061842532,-300.0,0.00020451,2]
[370537927,1752061842542,-500.0,0.00020451,2]
[370537929,1752061842552,-300.0,0.00020451,2]
[370537931,1752061842561,-3000.0,0.00020451,2]
[370537933,1752061842570,-500.0,0.00020451,2]
[370537947,1752061842691,-300.0,0.00020451,2]
[370537949,1752061842700,-3000.0,0.00020451,2]
[370537951,1752061842709,-300.0,0.00020451,2]
[370537953,1752061842720,-500.0,0.00020451,2]
[370537955,1752061842729,-300.0,0.00020451,2]
[370537957,1752061842738,-3000.0,0.00020451,2]
[370537959,1752061842747,-300.0,0.00020451,2]
[370537961,1752061842757,-500.0,0.00020451,2]
[370537963,1752061842766,-300.0,0.00020451,2]
[370537965,1752061842781,-300.0,0.00020451,2]
[370537967,1752061842790,-3000.0,0.00020451,2]
[370537969,1752061842799,-500.0,0.00020451,2]
[370537971,1752061842809,-300.0,0.00020451,2]
[370537973,1752061842818,-500.0,0.00020451,2]
[370537975,1752061842828,-300.0,0.00020451,2]
[370537977,1752061842837,-3000.0,0.00020451,2]
[370537979,1752061842848,-500.0,0.00020451,2]
[370537981,1752061842857,-300.0,0.00020451,2]
[370537983,1752061842867,-300.0,0.00020451,2]
[370537985,1752061842876,-3000.0,0.00020451,2]
[370537987,1752061842886,-300.0,0.00020451,2]
[370537989,1752061842895,-3000.0,0.00020451,2]
[370537990,1752061842904,-300.0,0.00020451,2]
[370537992,1752061842914,-300.0,0.00020451,2]
[370537994,1752061842923,-3000.0,0.00020451,2]
[370537996,1752061842933,-320.64489862,0.00020451,2]
[370537998,1752061842942,-3000.0,0.00020451,2]
[370538000,1752061842951,-300.0,0.00020451,2]
[370538002,1752061842961,-3000.0,0.00020451,2]
[370538005,1752061842972,-300.0,0.00020451,2]
[370538007,1752061842982,-3000.0,0.00020451,2]
[370538009,1752061842991,-300.0,0.00020451,2]
[370538011,1752061843000,-300.0,0.00020451,2]
[370538013,1752061843010,-3000.0,0.00020451,2]
[370538015,1752061843020,-500.0,0.00020451,2]
[370538017,1752061843029,-300.0,0.00020451,2]
[370538019,1752061843039,-3000.0,0.00020451,2]
[370538023,1752061843048,-500.0,0.00020451,2]
[370538025,1752061843058,-300.0,0.00020451,2]
[370538026,1752061843067,-300.0,0.00020451,2]
[370538028,1752061843075,-300.0,0.00020451,2]
[370538030,1752061843085,-25000.0,0.00020451,2]
[370538032,1752061843094,-500.0,0.00020451,2]
[370538034,1752061843103,-300.0,0.00020451,2]
[370538036,1752061843112,-5271.91774509,0.00020451,2]
[370538038,1752061843122,-195.35678219,0.00020451,2]
[370538040,1752061843131,-500.0,0.00020451,2]
[370538042,1752061843141,-500.0,0.00020451,2]
[370538044,1752061843151,-500.0,0.00020451,2]
[370538045,1752061843160,-151.0,0.00020451,2]
[370538046,1752061843169,-286.443058,0.00020451,2]
[370538047,1752061843179,-286.443058,0.00020451,2]
[370538048,1752061843188,-712.06,0.00020458,2]
[370538049,1752061843197,-365.887355,0.00020467,2]
[370538050,1752061843213,-716.195754,0.00020506,2]
[370538051,1752061843223,-712.06,0.00020546,2]
[370538052,1752061843232,-712.06,0.00020546,2]
[370538053,1752061843241,-460.0,0.00020547,2]
[370538054,1752061843252,-286.443058,0.00020547,2]
[370538055,1752061843261,-286.443058,0.00020547,2]
[370538056,1752061843271,-460.0,0.00020547,2]
[370538057,1752061843279,-460.0,0.00020547,2]
[370538058,1752061843289,-460.0,0.00020547,2]
[370538059,1752061843298,-460.0,0.00020547,2]
[370538060,1752061843307,-460.0,0.00020547,2]
[370538061,1752061843316,-460.0,0.00020547,2]
[370538062,1752061843325,-460.0,0.00020547,2]
[370538063,1752061843334,-3254.5,0.00020547,2]
[370538064,1752061843343,-510.07695423,0.00020547,2]
[370538065,1752061843352,-1204.18,0.00020547,2]
[370538066,1752061843361,-467.7,0.00020547,2]
[370538067,1752061843370,-4438.34,0.00020547,2]
[370538069,1752061843380,-460.0,0.00020547,2]
[370538070,1752061843389,-2809.86,0.00020547,2]
[370538071,1752061843398,-1437.82,0.00020547,2]
[370538072,1752061843407,-460.0,0.00020547,2]
[370538073,1752061843416,-460.0,0.00020547,2]
[370538074,1752061843425,-460.0,0.00020547,2]
[370538076,1752061843434,-597.22,0.00020547,2]
[370538078,1752061843443,-359.08,0.00020547,2]
[370538080,1752061843452,-230.73062223,0.00020547,2]
[370538082,1752061843461,-496.07,0.00020547,2]
[370538084,1752061843471,-460.0,0.00020547,2]
[370538086,1752061843481,-460.0,0.00020547,2]
[370538088,1752061843490,-460.0,0.00020547,2]
[370538090,1752061843499,-1601.6,0.00020547,2]
[370538092,1752061843509,-1095.64,0.00020547,2]
[370538095,1752061843518,-460.0,0.00020547,2]
[370538098,1752061843527,-1785.9,0.00020547,2]
[370538101,1752061843536,-460.0,0.00020547,2]
[370538103,1752061843545,-460.0,0.00020547,2]
[370538105,1752061843555,-1530.41,0.00020547,2]
[370538107,1752061843564,-752.29,0.00020547,2]
[370538109,1752061843575,-909.53,0.00020547,2]
[370538111,1752061843585,-460.0,0.00020547,2]
[370538113,1752061843595,-1971.58,0.00020547,2]
[370538115,1752061843604,-460.0,0.00020547,2]
[370538117,1752061843614,-460.0,0.00020547,2]
[370538119,1752061843624,-460.0,0.00020547,2]
[370538121,1752061843633,-460.0,0.00020547,2]
[370538123,1752061843642,-177.96,0.00020547,2]
[370538125,1752061843651,-460.0,0.00020547,2]
[370538127,1752061843660,-619.08,0.00020547,2]
[370538129,1752061843669,-1051.23,0.00020547,2]
[370538131,1752061843678,-571.01,0.00020547,2]
[370538133,1752061843687,-460.0,0.00020547,2]
[370538135,1752061843696,-460.0,0.00020547,2]
[370538137,1752061843705,-1056.3,0.00020547,2]
[370538139,1752061843714,-460.0,0.00020547,2]
[370538142,1752061843725,-616.85,0.00020547,2]
[370538144,1752061843734,-460.0,0.00020547,2]
[370538146,1752061843743,-460.0,0.00020547,2]
[370538148,1752061843752,-460.0,0.00020547,2]
[370538150,1752061843762,-648.54,0.00020547,2]
[370538152,1752061843771,-460.0,0.00020547,2]
[370538154,1752061843783,-460.0,0.00020547,2]
[370538156,1752061843792,-178.11579363,0.00020547,2]
[370538158,1752061843802,-1381.42,0.00020547,2]
[370538160,1752061843812,-742.6949969,0.00020561,2]
[370538162,1752061843823,-365.887355,0.00020564,2]
[370538164,1752061843832,-2396.05,0.000206,2]
[370538166,1752061843841,-770.17471178,0.00020616,2]
[370538168,1752061843851,-365.887355,0.00020662,2]
[370538170,1752061843861,-798.67117612,0.00020671,2]
[370538172,1752061843870,-1000.0,0.00020676,2]
[370538174,1752061843880,-1000.0,0.00020676,2]
[370538176,1752061843889,-1000.0,0.00020676,2]
[370538178,1752061843898,-500.0,0.00020676,2]
[370538179,1752061843908,-1000.0,0.00020676,2]
[370538182,1752061843917,-1000.0,0.00020676,2]
[370538183,1752061843926,-1000.0,0.00020676,2]
[370538185,1752061843936,-500.0,0.00020676,2]
[370538187,1752061843945,-511.99044002,0.00020676,2]
[370538189,1752061843955,-500.0,0.00020676,2]
[370538191,1752061843964,-258.533965,0.00020677,4]
[370538194,1752061843974,-151.0,0.0002071,2]
[370538195,1752061843983,-309.74380952,0.00020726,2]
[370538197,1752061843992,-365.887355,0.00020759,2]
[370538199,1752061844001,-712.06,0.0002082,2]
[370538201,1752061844010,-712.06,0.0002082,2]
[370538203,1752061844019,-460.0,0.00020821,2]
[370538205,1752061844028,-460.0,0.00020821,2]
[370538207,1752061844040,-460.0,0.00020821,2]
[370538209,1752061844049,-460.0,0.00020821,2]
[370538211,1752061844058,-460.0,0.00020821,2]
[370538213,1752061844067,-460.0,0.00020821,2]
[370538215,1752061844075,-460.0,0.00020821,2]
[370538217,1752061844085,-460.0,0.00020821,2]
[370538219,1752061844094,-3254.5,0.00020821,2]
[370538221,1752061844103,-1204.18,0.00020821,2]
[370538223,1752061844112,-467.7,0.00020821,2]
[370538225,1752061844121,-4438.34,0.00020821,2]
[370538227,1752061844130,-460.0,0.00020821,2]
[370538229,1752061844139,-2809.86,0.00020821,2]
[370538231,1752061844148,-1437.82,0.00020821,2]
[370538233,1752061844157,-460.0,0.00020821,2]
[370538235,1752061844166,-460.0,0.00020821,2]
[370538237,1752061844175,-460.0,0.00020821,2]
[370538239,1752061844184,-496.07,0.00020821,2]
[370538241,1752061844193,-460.0,0.00020821,2]
[370538243,1752061844202,-460.0,0.00020821,2]
[370538245,1752061844211,-460.0,0.00020821,2]
[370538247,1752061844221,-1095.64,0.00020821,2]
[370538249,1752061844231,-1601.6,0.00020821,2]
[370538251,1752061844240,-460.0,0.00020821,2]
[370538253,1752061844249,-1785.9,0.00020821,2]
[370538255,1752061844258,-460.0,0.00020821,2]
[370538257,1752061844267,-460.0,0.00020821,2]
[370538259,1752061844276,-1530.41,0.00020821,2]
[370538261,1752061844285,-752.29,0.00020821,2]
[370538263,1752061844294,-909.53,0.00020821,2]
[370538265,1752061844304,-212.05643418,0.00020821,2]
[370538267,1752061844313,-1971.58,0.00020821,2]
[370538269,1752061844322,-460.0,0.00020821,2]
[370538271,1752061844331,-460.0,0.00020821,2]
[370538273,1752061844339,-460.0,0.00020821,2]
[370538275,1752061844349,-460.0,0.00020821,2]
[370538277,1752061844358,-254.52,0.00020821,2]
[370538279,1752061844367,-619.08,0.00020821,2]
[370538281,1752061844376,-1051.23,0.00020821,2]
[370538283,1752061844385,-571.01,0.00020821,2]
[370538285,1752061844394,-460.0,0.00020821,2]
[370538287,1752061844403,-151.0,0.00020821,2]
[370538289,1752061844412,-460.0,0.00020821,2]
[370538291,1752061844421,-1056.3,0.00020821,2]
[370538293,1752061844431,-460.0,0.00020821,2]
[370538295,1752061844440,-616.85,0.00020821,2]
[370538297,1752061844449,-460.0,0.00020821,2]
[370538299,1752061844458,-460.0,0.00020821,2]
[370538301,1752061844468,-240.34477763,0.00020821,2]
[370538303,1752061844477,-648.54,0.00020821,2]
[370538305,1752061844486,-460.0,0.00020821,2]
[370538307,1752061844495,-460.0,0.00020821,2]
[370538309,1752061844504,-1381.42,0.00020821,2]
[370538311,1752061844513,-692.795,0.00020849,2]
[370538313,1752061844522,-365.887355,0.00020857,2]
[370538315,1752061844531,-741.3822004,0.00020865,2]
[370538317,1752061844542,-420.0,0.00020899,2]
[370538319,1752061844551,-1308.50762693,0.000209,4]
[370538321,1752061844560,-257.70502127,0.00020902,2]
[370538322,1752061844571,-500.0,0.00020902,2]
[370538324,1752061844585,-1000.0,0.00020906,2]
[370538327,1752061844594,-1500.0,0.00020946,2]
[370538329,1752061844604,-365.887355,0.00020954,2]
[370538331,1752061844613,-25000.0,0.00020999,2]
[370538332,1752061844623,-151.0,0.00020999,2]
[370538334,1752061844632,-151.299347,0.00020999,2]
[370538336,1752061844641,-151.0,0.00020999,2]
[370538338,1752061844651,-151.0,0.00020999,2]
[370538340,1752061844661,-151.0,0.00020999,2]
[370538342,1752061844675,-279.852506,0.00020999,2]
[370538344,1752061844685,-151.0,0.00020999,2]
[370538346,1752061844694,-151.0,0.00020999,2]
[370538348,1752061844703,-151.0,0.00020999,2]
[370538350,1752061844712,-151.0,0.00020999,2]
[370538352,1752061844722,-365.887355,0.00021052,2]
[370538354,1752061844731,-1308.50762666,0.00021072,4]
[370538356,1752061844741,-712.06,0.00021082,2]
[370538358,1752061844751,-643.04,0.00021084,3]
[370538360,1752061844761,-1286.08,0.00021086,3]
[370538362,1752061844771,-151.0,0.00021094,2]
[370538364,1752061844787,-712.06,0.00021094,2]
[370538366,1752061844796,-712.06,0.00021094,2]
[370538368,1752061844805,-712.06,0.00021094,2]
[370538370,1752061844815,-342685.66968848,0.00021094,4]
[370538379,1752061844895,-398.21015383,0.00021094,4]
[370538382,1752061844911,-160.76,0.00019442,3]
[370538384,1752061844921,-1457.40963289,0.00021094,4]
[370538386,1752061844932,-8676.274123,0.00021094,4]
[370538466,1752061845677,-460.0,0.00019178,2]
[370538469,1752061845687,-1204.24689589,0.000199,2]
[370538471,1752061845697,-1204.24689585,0.00020242,2]
[370538473,1752061845706,-1204.24689585,0.00020585,2]
[370538475,1752061845717,-321.52,0.00020812,3]
[370538477,1752061845727,-50130.73931243,0.00021094,4]
[370538480,1752061845739,-432.15813639,0.00021094,4]
[370538553,1752062277275,156.19,0.00027397,120]
[370538555,1752062362267,1515.2,0.00027397,120]
[370538556,1752062474878,550.0,0.00027397,120]
[370538557,1752062492778,636.0,0.00027397,120]
[370538558,1752062537488,185.974599,0.00013699,2]
[370538559,1752062546283,3000.0,0.0001678,2]
[370538560,1752062547914,1802.46893615,0.00017876,2]
[370538561,1752062547936,1197.53106385,0.00017876,2]
[370538562,1752062651568,12666.5536836,0.00027397,120]
[370538703,1752063032243,-3000.0,0.00018972,2]
[370538763,1752063032755,-383.0,0.00018992,2]
[370538765,1752063032770,-527.0,0.00018993,2]
[370538768,1752063032782,-300.0,0.00018993,2]
[370538770,1752063032792,-224.0,0.00018993,2]
[370538772,1752063032802,-300.0,0.00018993,2]
[370538774,1752063032814,-500.0,0.00018994,2]
[370538776,1752063032825,-500.0,0.00018994,2]
[370538779,1752063032837,-500.0,0.00018994,2]
[370538781,1752063032848,-404.01609418,0.00018994,2]
[370538783,1752063032859,-503.23124525,0.00018994,2]
[370538785,1752063032869,-185.3455501,0.00019078,2]
[370538787,1752063032880,-11167.0497949,0.00019177,2]
[370538789,1752063032892,-534.87931776,0.00019177,2]
[370538792,1752063032903,-500.0,0.00019177,2]
[370538794,1752063032914,-500.0,0.00019177,2]
[370538796,1752063032925,-500.0,0.00019177,2]
[370538798,1752063032936,-243.57901688,0.00019177,2]
[370538801,1752063032948,-405.06544694,0.00019177,2]
[370538803,1752063032958,-460.0,0.00019178,2]
[370538805,1752063032968,-460.0,0.00019178,2]
[370538807,1752063032978,-460.0,0.00019178,2]
[370538809,1752063032988,-460.0,0.00019178,2]
[370538811,1752063032997,-460.0,0.00019178,2]
[370538813,1752063033008,-460.0,0.00019178,2]
[370538815,1752063033018,-460.0,0.00019178,2]
[370538817,1752063033028,-460.0,0.00019178,2]
[370538819,1752063033040,-460.0,0.00019178,2]
[370538821,1752063033051,-460.0,0.00019178,2]
[370538824,1752063033066,-460.0,0.00019178,2]
[370538826,1752063033077,-440.07410312,0.00019178,2]
[370538828,1752063033089,-460.0,0.00019178,2]
[370538830,1752063033099,-460.0,0.00019178,2]
[370538832,1752063033110,-460.0,0.00019178,2]
[370538834,1752063033120,-460.0,0.00019178,2]
[370538836,1752063033131,-460.0,0.00019178,2]
[370538839,1752063033143,-460.0,0.00019178,2]
[370538841,1752063033155,-460.0,0.00019178,2]
[370538843,1752063033166,-460.0,0.00019178,2]
[370538845,1752063033178,-460.0,0.00019178,2]
[370538847,1752063033190,-514.6944965,0.00019178,2]
[370538849,1752063033201,-460.0,0.00019178,2]
[370538851,1752063033211,-546.26,0.00019178,2]
[370538854,1752063033222,-460.0,0.00019178,2]
[370538856,1752063033232,-460.0,0.00019178,2]
[370538858,1752063033245,-246.82,0.00019178,2]
[370538860,1752063033256,-460.0,0.00019178,2]
[370538862,1752063033267,-460.0,0.00019178,2]
[370538865,1752063033282,-460.0,0.00019178,2]
[370538867,1752063033292,-460.0,0.00019178,2]
[370538869,1752063033303,-460.0,0.00019178,2]
[370538871,1752063033320,-460.0,0.00019178,2]
[370538874,1752063033332,-460.0,0.00019178,2]
[370538876,1752063033342,-460.0,0.00019178,2]
[370538878,1752063033353,-433.44,0.00019178,2]
[370538880,1752063033364,-460.0,0.00019178,2]
[370538882,1752063033374,-460.0,0.00019178,2]
[370538884,1752063033386,-460.0,0.00019178,2]
[370538886,1752063033398,-812.44,0.00019178,2]
[370538888,1752063033409,-460.0,0.00019178,2]
[370538890,1752063033419,-460.0,0.00019178,2]
[370538893,1752063033430,-1269.19476537,0.00019178,2]
[370539698,1752063045820,-2244.48523463,0.00019178,2]
[370539700,1752063045829,-707.97413422,0.00019178,2]
[370539702,1752063045840,-473.66586578,0.00019178,2]
[370539704,1752063045850,-460.0,0.00019178,2]
[370539706,1752063045859,-460.0,0.00019178,2]
[370539708,1752063045868,-460.0,0.00019178,2]
[370539710,1752063045877,-460.0,0.00019178,2]
[370539712,1752063045887,-2438.47,0.00019178,2]
[370539714,1752063045895,-460.0,0.00019178,2]
[370539716,1752063045904,-460.0,0.00019178,2]
[370539718,1752063045913,-460.0,0.00019178,2]
[370539720,1752063045922,-153.86413422,0.00019178,2]
[370539726,1752063045976,-306.13586578,0.00019178,2]
[370539728,1752063045991,-460.0,0.00019178,2]
[370539730,1752063045999,-1397.91,0.00019178,2]
[370539732,1752063046008,-460.0,0.00019178,2]
[370539734,1752063046018,-500.0,0.00019178,2]
[370539736,1752063046027,-1377.87,0.00019178,2]
[370539738,1752063046036,-500.0,0.00019178,2]
[370539740,1752063046045,-893.4,0.00019178,2]
[370539742,1752063046054,-460.0,0.00019178,2]
[370539744,1752063046064,-460.0,0.00019178,2]
[370539746,1752063046073,-595.56,0.00019178,2]
[370539748,1752063046083,-846.22,0.00019178,2]
[370539749,1752063046092,-460.0,0.00019178,2]
[370539751,1752063046101,-460.0,0.00019178,2]
[370539753,1752063046110,-460.0,0.00019178,2]
[370539755,1752063046119,-1499.53,0.00019178,2]
[370539757,1752063046128,-359.08,0.00019178,2]
[370539759,1752063046137,-460.0,0.00019178,2]
[370539761,1752063046146,-460.0,0.00019178,2]
[370539763,1752063046155,-460.0,0.00019178,2]
[370539765,1752063046164,-500.0,0.00019178,2]
[370539767,1752063046173,-460.0,0.00019178,2]
[370539769,1752063046183,-460.0,0.00019178,2]
[370539771,1752063046192,-460.0,0.00019178,2]
[370539773,1752063046201,-293.3,0.00019178,2]
[370539775,1752063046209,-254.52,0.00019178,2]
[370539777,1752063046218,-460.0,0.00019178,2]
[370539779,1752063046227,-856.61,0.00019178,2]
[370539781,1752063046236,-460.0,0.00019178,2]
[370539783,1752063046245,-209.25,0.00019178,2]
[370539785,1752063046254,-1625.69,0.00019178,2]
[370539786,1752063046264,-460.0,0.00019178,2]
[370539788,1752063046274,-460.0,0.00019178,2]
[370539790,1752063046283,-460.0,0.00019178,2]
[370539792,1752063046292,-486.4,0.00019178,2]
[370539794,1752063046301,-460.0,0.00019178,2]
[370539796,1752063046311,-460.0,0.00019178,2]
[370539798,1752063046323,-178.11579363,0.00019178,2]
[370539800,1752063046332,-509.27,0.00019178,2]
[370539802,1752063046341,-460.0,0.00019178,2]
[370539804,1752063046351,-460.0,0.00019178,2]
[370539806,1752063046361,-460.0,0.00019178,2]
[370539808,1752063046371,-460.0,0.00019178,2]
[370539810,1752063046380,-822.6,0.00019178,2]
[370539812,1752063046390,-460.0,0.00019178,2]